fUSD/lending_fUSD_20240220
["ID","MTS","AMOUNT","RATE_DAILY","PERIOD"]
[314526188,1708404661257,-500.0,0.00036775,2]
[314526189,1708404661266,-500.0,0.00036775,2]
[314526190,1708404661276,-500.0,0.00036775,2]
[314526191,1708404661285,-200.61,0.00036775,2]
[314526192,1708404661295,-781.79,0.00036775,2]
[314526193,1708404661304,-2321.94,0.00036775,2]
[314526194,1708404661314,-521.74,0.00036775,2]
[314526195,1708404661323,-738.55,0.00036775,2]
[314526196,1708404661332,-500.0,0.00036775,2]
[314526197,1708404661341,-500.0,0.00036775,2]
[314526198,1708404661351,-2120.58,0.00036775,2]
[314526199,1708404661360,-500.0,0.00036775,2]
[314526200,1708404661369,-500.0,0.00036775,2]
[314526201,1708404661379,-1144.04,0.00036775,2]
[314526202,1708404661390,-553.19,0.00036775,2]
[314526203,1708404661399,-1218.97,0.00036775,2]
[314526204,1708404661409,-679.54,0.00036775,2]
[314526205,1708404661418,-955.01,0.00036775,2]
[314526206,1708404661427,-602.71,0.00036775,2]
[314526207,1708404661437,-784.52,0.00036775,2]
[314526208,1708404661446,-2327.33,0.00036775,2]
[314526209,1708404661455,-1562.34,0.00036775,2]
[314526210,1708404661464,-500.0,0.00036775,2]
[314526211,1708404661473,-500.0,0.00036775,2]
[314526212,1708404661482,-881.72,0.00036775,2]
[314526213,1708404661492,-598.05,0.00036775,2]
[314526214,1708404661501,-2409.25,0.00036775,2]
[314526215,1708404661511,-500.0,0.00036775,2]
[314526216,1708404661520,-1770.81,0.00036775,2]
[314526217,1708404661529,-1622.36,0.00036775,2]
[314526218,1708404661538,-681.65,0.00036775,2]
[314526219,1708404661547,-731.49,0.00036775,2]
[314526220,1708404661556,-1891.26,0.00036775,2]
[314526221,1708404661565,-1387.56,0.00036775,2]
[314526222,1708404661575,-598.04,0.00036775,2]
[314526223,1708404661585,-1305.79,0.00036775,2]
[314526224,1708404661597,-3172.24,0.00036775,2]
[314526225,1708404661606,-500.0,0.00036775,2]
[314526226,1708404661617,-1740.42,0.00036775,2]
[314526227,1708404661626,-500.0,0.00036775,2]
[314526228,1708404661638,-2498.33,0.00036775,2]
[314526229,1708404661647,-500.0,0.00036775,2]
[314526230,1708404661657,-1245.94,0.00036775,2]
[314526231,1708404661667,-710.74,0.00036775,2]
[314526232,1708404661679,-500.0,0.00036775,2]
[314526233,1708404661689,-1758.44,0.00036775,2]
[314526234,1708404661698,-500.0,0.00036775,2]
[314526235,1708404661707,-735.45,0.00036775,2]
[314526236,1708404661717,-500.0,0.00036775,2]
[314526237,1708404661726,-1385.32,0.00036775,2]
[314526238,1708404661735,-1196.35,0.00036775,2]
[314526239,1708404661744,-3337.25,0.00036775,2]
[314526240,1708404661754,-1624.65,0.00036775,2]
[314526241,1708404661763,-500.0,0.00036775,2]
[314526242,1708404661772,-500.0,0.00036775,2]
[314526243,1708404661782,-598.29,0.00036775,2]
[314526244,1708404661791,-628.8,0.00036775,2]
[314526245,1708404661800,-1236.35,0.00036775,2]
[314526246,1708404661809,-558.16,0.00036775,2]
[314526247,1708404661818,-852.28,0.00036775,2]
[314526248,1708404661827,-9383.72,0.00036775,2]
[314526249,1708404661837,-5004.23,0.00036775,2]
[314526250,1708404661846,-4206.68,0.00036775,2]
[314526251,1708404661855,-500.0,0.00036775,2]
[314526252,1708404661864,-500.0,0.00036775,2]
[314526253,1708404661873,-500.0,0.00036775,2]
[314526254,1708404661883,-812.79,0.00036775,2]
[314526255,1708404661893,-1327.49,0.00036775,2]
[314526256,1708404661903,-500.0,0.00036775,2]
[314526257,1708404661912,-2262.08,0.00036775,2]
[314526258,1708404661921,-2369.72,0.00036775,2]
[314526259,1708404661930,-670.05,0.00036775,2]
[314526260,1708404661939,-823.48,0.00036775,2]
[314526261,1708404661949,-500.0,0.00036775,2]
[314526262,1708404661958,-3631.45,0.00036775,2]
[314526263,1708404661967,-1466.49,0.00036775,2]
[314526264,1708404661976,-917.5,0.00036775,2]
[314526265,1708404661985,-500.0,0.00036775,2]
[314526266,1708404661994,-500.0,0.00036775,2]
[314526267,1708404662003,-1816.69,0.00036775,2]
[314526268,1708404662013,-617.42,0.00036775,2]
[314526269,1708404662022,-918.81,0.00036775,2]
[314526270,1708404662031,-1426.37,0.00036775,2]
[314526271,1708404662041,-500.0,0.00036775,2]
[314526272,1708404662050,-1332.3,0.00036775,2]
[314526273,1708404662060,-2209.99,0.00036775,2]
[314526274,1708404662069,-500.0,0.00036775,2]
[314526275,1708404662078,-1559.19,0.00036775,2]
[314526276,1708404662088,-500.0,0.00036775,2]
[314526277,1708404662097,-500.0,0.00036775,2]
[314526278,1708404662107,-500.0,0.00036775,2]
[314526279,1708404662116,-6563.77,0.00036775,2]
[314526280,1708404662126,-500.0,0.00036775,2]
[314526281,1708404662135,-500.0,0.00036775,2]
[314526282,1708404662145,-1224.46,0.00036775,2]
[314526283,1708404662154,-2386.58,0.00036775,2]
[314526284,1708404662164,-500.0,0.00036775,2]
[314526285,1708404662173,-2001.87,0.00036775,2]
[314526286,1708404662183,-1466.78,0.00036775,2]
[314526287,1708404662192,-642.62,0.00036775,2]
[314526288,1708404662201,-500.0,0.00036775,2]
[314526289,1708404662211,-300.0,0.00036782,2]
[314526290,1708404662220,-300.0,0.00036782,2]
[314526291,1708404662229,-300.0,0.00036782,2]
[314526292,1708404662239,-300.0,0.00036782,2]
[314526293,1708404662249,-300.0,0.00036782,2]
[314526294,1708404662258,-300.0,0.00036782,2]
[314526295,1708404662268,-300.0,0.00036782,2]
[314526296,1708404662278,-2000.0,0.00036783,4]
[314526297,1708404662287,-300.0,0.00036784,2]
[314526298,1708404662296,-563.6842765,0.00036795,27]
[314526299,1708404662306,-514.7073362,0.00036795,2]
[314526300,1708404662316,-5538.11056031,0.00036796,9]
[314526301,1708404662325,-151.0212031,0.00036798,7]
[314526302,1708404662335,-734.91160598,0.00036798,2]
[314526303,1708404662344,-734.91160595,0.00036798,2]
[314526304,1708404662354,-734.91160595,0.00036798,2]
[314526305,1708404662363,-734.91160595,0.00036798,2]
[314526306,1708404662373,-734.91160595,0.00036798,2]
[314526307,1708404662382,-734.91160595,0.00036798,2]
[314526308,1708404662391,-1275.960282,0.000368,2]
[314526309,1708404662401,-165.73906841,0.000368,2]
[314526310,1708404662411,-180.61625505,0.000368,2]
[314526311,1708404662421,-1500.0,0.000368,24]
[314526312,1708404662430,-563.68427648,0.00036816,27]
[314526313,1708404662439,-1155.81582629,0.00036823,2]
[314526314,1708404662448,-177.58,0.00036824,2]
[314526315,1708404662457,-563.68427648,0.00036838,27]
[314526316,1708404662466,-154.67416129,0.00036854,2]
[314526317,1708404662475,-563.68427648,0.00036859,27]
[314526318,1708404662484,-209.90824244,0.00036863,2]
[314526319,1708404662493,-2042004.72467839,0.00036873,4]
[314526320,1708404662502,-500.0,0.00036873,2]
[314526321,1708404662511,-500.0,0.00036873,2]
[314526322,1708404662520,-500.0,0.00036873,2]
[314526323,1708404662530,-500.0,0.00036873,2]
[314526324,1708404662539,-500.0,0.00036873,2]
[314526325,1708404662548,-500.0,0.00036873,2]
[314526326,1708404662558,-679.06,0.00036873,2]
[314526327,1708404662567,-500.0,0.00036873,2]
[314526328,1708404662576,-500.0,0.00036873,2]
[314526329,1708404662585,-500.0,0.00036873,2]
[314526330,1708404662598,-500.0,0.00036873,2]
[314526331,1708404662607,-500.0,0.00036873,2]
[314526332,1708404662617,-500.0,0.00036873,2]
[314526333,1708404662626,-500.0,0.00036873,2]
[314526334,1708404662637,-285.21270513,0.00036873,2]
[314526335,1708404662646,-500.0,0.00036873,2]
[314526336,1708404662656,-500.0,0.00036873,2]
[314526337,1708404662666,-500.0,0.00036873,2]
[314526338,1708404662677,-500.0,0.00036873,2]
[314526339,1708404662687,-500.0,0.00036873,2]
[314526340,1708404662696,-500.0,0.00036873,2]
[314526341,1708404662706,-500.0,0.00036873,2]
[314526342,1708404662722,-318.57865668,0.00036873,2]
[314526343,1708404662740,-532.77,0.00036873,2]
[314526344,1708404662757,-500.0,0.00036873,2]
[314526345,1708404662767,-500.0,0.00036873,2]
[314526346,1708404662777,-584.05201171,0.00036873,2]
[314526347,1708404662787,-1000.0,0.00036873,2]
[314526348,1708404662796,-500.0,0.00036873,2]
[314526349,1708404662805,-500.0,0.00036873,2]
[314526350,1708404662815,-500.0,0.00036873,2]
[314526351,1708404662825,-500.0,0.00036873,2]
[314526352,1708404662835,-500.0,0.00036873,2]
[314526353,1708404662845,-583.81,0.00036873,2]
[314526354,1708404662854,-500.0,0.00036873,2]
[314526355,1708404662863,-500.0,0.00036873,2]
[314526356,1708404662873,-500.0,0.00036873,2]
[314526357,1708404662882,-500.0,0.00036873,2]
[314526358,1708404662891,-904.92,0.00036873,2]
[314526359,1708404662900,-500.0,0.00036873,2]
[314526360,1708404662910,-515.96273189,0.00036873,2]
[314526361,1708404662919,-500.0,0.00036873,2]
[314526362,1708404662928,-500.0,0.00036873,2]
[314526363,1708404662938,-500.0,0.00036873,2]
[314526364,1708404662947,-500.0,0.00036873,2]
[314526365,1708404662956,-500.0,0.00036873,2]
[314526366,1708404662965,-500.0,0.00036873,2]
[314526367,1708404662974,-500.0,0.00036873,2]
[314526368,1708404662984,-500.0,0.00036873,2]
[314526369,1708404662994,-500.0,0.00036873,2]
[314526370,1708404663003,-500.0,0.00036873,2]
[314526371,1708404663013,-500.0,0.00036873,2]
[314526372,1708404663022,-500.0,0.00036873,2]
[314526373,1708404663032,-500.0,0.00036873,2]
[314526374,1708404663042,-500.0,0.00036873,2]
[314526375,1708404663051,-500.0,0.00036873,2]
[314526376,1708404663061,-500.0,0.00036873,2]
[314526377,1708404663071,-500.0,0.00036873,2]
[314526378,1708404663079,-500.0,0.00036873,2]
[314526379,1708404663089,-500.0,0.00036873,2]
[314526380,1708404663098,-500.0,0.00036873,2]
[314526381,1708404663107,-500.0,0.00036873,2]
[314526382,1708404663116,-703.38,0.00036873,2]
[314526383,1708404663126,-500.0,0.00036873,2]
[314526384,1708404663135,-500.0,0.00036873,2]
[314526385,1708404663145,-500.0,0.00036873,2]
[314526386,1708404663154,-500.0,0.00036873,2]
[314526387,1708404663163,-548.34094149,0.00036873,2]
[314526388,1708404663173,-500.0,0.00036873,2]
[314526389,1708404663182,-500.0,0.00036873,2]
[314526390,1708404663191,-500.0,0.00036873,2]
[314526391,1708404663201,-505.96,0.00036873,2]
[314526392,1708404663210,-490.0,0.00036873,2]
[314526393,1708404663219,-500.0,0.00036873,2]
[314526394,1708404663229,-500.0,0.00036873,2]
[314526395,1708404663238,-500.0,0.00036873,2]
[314526396,1708404663247,-500.0,0.00036873,2]
[314526397,1708404663257,-500.0,0.00036873,2]
[314526398,1708404663266,-500.0,0.00036873,2]
[314526399,1708404663275,-500.0,0.00036873,2]
[314526400,1708404663285,-500.0,0.00036873,2]
[314526401,1708404663294,-500.0,0.00036873,2]
[314526402,1708404663303,-511.39361169,0.00036873,2]
[314526403,1708404663313,-500.0,0.00036873,2]
[314526404,1708404663323,-601.96,0.00036873,2]
[314526405,1708404663332,-500.0,0.00036873,2]
[314526406,1708404663342,-500.0,0.00036873,2]
[314526407,1708404663352,-500.0,0.00036873,2]
[314526408,1708404663360,-571.34,0.00036873,2]
[314526409,1708404663370,-562.44,0.00036873,2]
[314526410,1708404663379,-500.0,0.00036873,2]
[314526411,1708404663389,-510.97,0.00036873,2]
[314526412,1708404663398,-500.0,0.00036873,2]
[314526413,1708404663408,-500.0,0.00036873,2]
[314526414,1708404663417,-596.54271514,0.00036873,2]
[314526415,1708404663592,-500.0,0.00036873,2]
[314526416,1708404663610,-500.0,0.00036873,2]
[314526417,1708404663620,-500.0,0.00036873,2]
[314526418,1708404663630,-500.0,0.00036873,2]
[314526419,1708404663640,-500.0,0.00036873,2]
[314526420,1708404663651,-500.0,0.00036873,2]
[314526421,1708404663661,-500.0,0.00036873,2]
[314526422,1708404663671,-500.0,0.00036873,2]
[314526423,1708404663681,-500.0,0.00036873,2]
[314526424,1708404663690,-500.0,0.00036873,2]
[314526425,1708404663700,-500.0,0.00036873,2]
[314526426,1708404663710,-500.0,0.00036873,2]
[314526427,1708404663719,-500.0,0.00036873,2]
[314526428,1708404663729,-500.0,0.00036873,2]
[314526429,1708404663739,-500.0,0.00036873,2]
[314526430,1708404663748,-500.0,0.00036873,2]
[314526431,1708404663758,-500.0,0.00036873,2]
[314526432,1708404663767,-500.0,0.00036873,2]
[314526433,1708404663776,-500.0,0.00036873,2]
[314526434,1708404663785,-385.09113724,0.00036873,7]
[314526435,1708404663795,-619.14841119,0.0003688,8]
[314526436,1708404663805,-992.00001951,0.0003688,2]
[314526437,1708404663815,-1184.82945645,0.0003688,2]
[314526438,1708404663824,-1822.90360866,0.0003688,2]
[314526439,1708404663834,-9982.6719215,0.0003688,2]
[314526440,1708404663845,-563.68427648,0.0003688,27]
[314526441,1708404663854,-336.27197188,0.0003688,2]
[314526442,1708404663864,-500.0,0.00036895,2]
[314526443,1708404663873,-535.86,0.00036895,2]
[314526444,1708404663882,-500.0,0.00036895,2]
[314526445,1708404663892,-500.0,0.00036895,2]
[314526446,1708404663901,-500.0,0.00036895,2]
[314526447,1708404663910,-500.0,0.00036895,2]
[314526448,1708404663920,-513.49968251,0.00036895,2]
[314526449,1708404663929,-513.43999768,0.00036895,2]
[314526450,1708404663938,-500.0,0.00036895,2]
[314526451,1708404663947,-500.0,0.00036895,2]
[314526452,1708404663956,-500.0,0.00036895,2]
[314526453,1708404663965,-500.0,0.00036895,2]
[314526454,1708404663975,-500.0,0.00036895,2]
[314526455,1708404663983,-500.0,0.00036895,2]
[314526456,1708404663992,-500.0,0.00036895,2]
[314526457,1708404664001,-500.0,0.00036895,2]
[314526458,1708404664010,-500.0,0.00036895,2]
[314526459,1708404664020,-500.0,0.00036895,2]
[314526460,1708404664029,-500.0,0.00036895,2]
[314526461,1708404664038,-500.0,0.00036895,2]
[314526462,1708404664047,-516.84129909,0.00036895,2]
[314526463,1708404664055,-500.0,0.00036895,2]
[314526464,1708404664064,-500.0,0.00036895,2]
[314526465,1708404664073,-500.0,0.00036895,2]
[314526466,1708404664083,-500.0,0.00036895,2]
[314526467,1708404664093,-500.0,0.00036895,2]
[314526468,1708404664102,-500.0,0.00036895,2]
[314526469,1708404664111,-500.0,0.00036895,2]
[314526470,1708404664120,-500.0,0.00036895,2]
[314526471,1708404664130,-500.0,0.00036895,2]
[314526472,1708404664140,-500.0,0.00036895,2]
[314526473,1708404664149,-500.0,0.00036895,2]
[314526474,1708404664158,-500.0,0.00036895,2]
[314526475,1708404664168,-500.0,0.00036895,2]
[314526476,1708404664177,-500.0,0.00036895,2]
[314526477,1708404664187,-500.0,0.00036895,2]
[314526478,1708404664196,-500.0,0.00036895,2]
[314526479,1708404664206,-500.0,0.00036895,2]
[314526480,1708404664215,-500.24,0.00036895,2]
[314526481,1708404664224,-500.0,0.00036895,2]
[314526482,1708404664233,-500.0,0.00036895,2]
[314526483,1708404664243,-500.0,0.00036895,2]
[314526484,1708404664253,-617.97492893,0.00036895,2]
[314526485,1708404664263,-586.58,0.00036895,2]
[314526486,1708404664273,-500.0,0.00036895,2]
[314526487,1708404664282,-500.0,0.00036895,2]
[314526488,1708404664292,-500.0,0.00036895,2]
[314526489,1708404664301,-500.0,0.00036895,2]
[314526490,1708404664311,-500.0,0.00036895,2]
[314526491,1708404664321,-500.0,0.00036895,2]
[314526492,1708404664331,-500.0,0.00036895,2]
[314526493,1708404664341,-500.0,0.00036895,2]
[314526494,1708404664351,-500.0,0.00036895,2]
[314526495,1708404664361,-500.0,0.00036895,2]
[314526496,1708404664371,-500.0,0.00036895,2]
[314526497,1708404664381,-500.0,0.00036895,2]
[314526498,1708404664391,-500.0,0.00036895,2]
[314526499,1708404664401,-500.0,0.00036895,2]
[314526500,1708404664411,-461.53593601,0.00036895,2]
[314526501,1708404664421,-500.0,0.00036895,2]
[314526502,1708404664430,-500.0,0.00036895,2]
[314526503,1708404664440,-500.0,0.00036895,2]
[314526504,1708404664449,-500.0,0.00036895,2]
[314526505,1708404664459,-500.0,0.00036895,2]
[314526506,1708404664468,-500.0,0.00036895,2]
[314526507,1708404664478,-500.0,0.00036895,2]
[314526508,1708404664488,-500.0,0.00036895,2]
[314526509,1708404664497,-500.0,0.00036895,2]
[314526510,1708404664507,-500.0,0.00036895,2]
[314526511,1708404664517,-500.0,0.00036895,2]
[314526512,1708404664526,-527.39923082,0.00036895,2]
[314526513,1708404664536,-500.0,0.00036895,2]
[314526514,1708404664545,-500.0,0.00036895,2]
[314526515,1708404664554,-500.0,0.00036895,2]
[314526516,1708404664564,-500.0,0.00036895,2]
[314526517,1708404664573,-572.53642297,0.00036895,2]
[314526518,1708404664583,-500.0,0.00036895,2]
[314526519,1708404664594,-500.0,0.00036895,2]
[314526520,1708404664604,-500.0,0.00036895,2]
[314526521,1708404664614,-577.79299157,0.00036895,2]
[314526522,1708404664624,-500.0,0.00036895,2]
[314526523,1708404664634,-500.0,0.00036895,2]
[314526524,1708404664643,-500.0,0.00036895,2]
[314526525,1708404664652,-500.0,0.00036895,2]
[314526526,1708404664662,-634.31,0.00036895,2]
[314526527,1708404664675,-500.0,0.00036895,2]
[314526528,1708404664685,-500.0,0.00036895,2]
[314526529,1708404664694,-500.0,0.00036895,2]
[314526530,1708404664704,-514.51,0.00036895,2]
[314526531,1708404664713,-534.28381847,0.00036895,2]
[314526532,1708404664722,-785.86,0.00036895,2]
[314526533,1708404664731,-500.0,0.00036895,2]
[314526534,1708404664741,-500.0,0.00036895,2]
[314526535,1708404664750,-500.0,0.00036895,2]
[314526536,1708404664759,-718.04,0.00036895,2]
[314526537,1708404664768,-500.0,0.00036895,2]
[314526538,1708404664778,-500.0,0.00036895,2]
[314526539,1708404664786,-500.0,0.00036895,2]
[314526540,1708404664796,-500.0,0.00036895,2]
[314526541,1708404664805,-1887.95,0.00036895,2]
[314526542,1708404664814,-352.50825218,0.00036895,2]
[314526543,1708404664823,-500.0,0.00036895,2]
[314526544,1708404664832,-500.0,0.00036895,2]
[314526545,1708404664841,-1098.31,0.00036895,2]
[314526546,1708404664850,-2136.83,0.00036895,2]
[314526547,1708404664859,-1362.9,0.00036895,2]
[314526548,1708404664868,-500.0,0.00036895,2]
[314526549,1708404664877,-984.24,0.00036895,2]
[314526550,1708404664888,-500.0,0.00036895,2]
[314526551,1708404664897,-500.0,0.00036895,2]
[314526552,1708404664906,-1767.16,0.00036895,2]
[314526553,1708404664915,-730.58,0.00036895,2]
[314526554,1708404664925,-597.31,0.00036895,2]
[314526555,1708404664934,-500.0,0.00036895,2]
[314526556,1708404664943,-4220.18,0.00036895,2]
[314526557,1708404664952,-524.48049931,0.00036895,2]
[314526558,1708404664961,-500.0,0.00036895,2]
[314526559,1708404664972,-2057.42,0.00036895,2]
[314526560,1708404664981,-500.0,0.00036895,2]
[314526561,1708404664991,-1817.66,0.00036895,2]
[314526562,1708404665002,-1788.78,0.00036895,2]
[314526563,1708404665012,-500.0,0.00036895,2]
[314526564,1708404665022,-500.0,0.00036895,2]
[314526565,1708404665032,-735.27,0.00036895,2]
[314526566,1708404665041,-452.65601913,0.00036895,2]
[314526567,1708404665051,-500.0,0.00036895,2]
[314526568,1708404665062,-551.56,0.00036895,2]
[314526569,1708404665072,-500.0,0.00036895,2]
[314526570,1708404665082,-587.99,0.00036895,2]
[314526571,1708404665092,-1012.02,0.00036895,2]
[314526572,1708404665102,-3236.98,0.00036895,2]
[314526573,1708404665112,-500.0,0.00036895,2]
[314526574,1708404665122,-500.0,0.00036895,2]
[314526575,1708404665130,-500.0,0.00036895,2]
[314526576,1708404665140,-1157.33,0.00036895,2]
[314526577,1708404665150,-500.0,0.00036895,2]
[314526578,1708404665159,-786.32,0.00036895,2]
[314526579,1708404665168,-889.72,0.00036895,2]
[314526580,1708404665179,-856.51,0.00036895,2]
[314526581,1708404665188,-500.0,0.00036895,2]
[314526582,1708404665198,-500.0,0.00036895,2]
[314526583,1708404665208,-500.0,0.00036895,2]
[314526584,1708404665217,-1090.54,0.00036895,2]
[314526585,1708404665227,-150.0,0.00036898,2]
[314526586,1708404665237,-300.0,0.00036899,2]
[314526587,1708404665247,-197.05258748,0.00036899,2]
[314526588,1708404665257,-1898923.41592026,0.000369,3]
[314526589,1708404665267,-1639.74953942,0.000369,3]
[314526590,1708404665278,-33540.44,0.000369,7]
[314526591,1708404665288,-1030.42,0.000369,7]
[314526592,1708404665298,-70312.44,0.000369,7]
[314526593,1708404665308,-1500.0,0.000369,7]
[314526594,1708404665319,-1500.0,0.000369,7]
[314526595,1708404665331,-1981.0,0.000369,7]
[314526596,1708404665341,-927.54,0.00036905,2]
[314526597,1708404665352,-1774.41,0.00036905,2]
[314526598,1708404665362,-953.38,0.00036905,2]
[314526599,1708404665372,-1109.66,0.00036905,2]
[314526600,1708404665383,-1555.54,0.00036905,2]
[314526601,1708404665394,-500.0,0.00036905,2]
[314526602,1708404665405,-884.0,0.00036905,2]
[314526603,1708404665417,-1285.99,0.00036905,2]
[314526604,1708404665427,-989.33,0.00036905,2]
[314526605,1708404665438,-1208.46,0.00036905,2]
[314526606,1708404665448,-500.0,0.00036905,2]
[314526607,1708404665458,-166.55,0.00036926,2]
[314526608,1708404665467,-5538.11056031,0.0003693,10]
[314526609,1708404665477,-10624.38632906,0.0003696,2]
[314526610,1708404665486,-734.91160595,0.0003696,2]
[314526611,1708404665496,-200.0,0.0003697,7]
[314526612,1708404665505,-200.0,0.0003697,7]
[314526613,1708404665515,-1883.8640223,0.00036975,2]
[314526614,1708404665525,-21781.4963522,0.00036975,2]
[314526615,1708404665536,-5208.6442655,0.00036975,2]
[314526616,1708404665546,-162.38833905,0.00036979,2]
[314526617,1708404665556,-4979.89112243,0.00036979,2]
[314526618,1708404665566,-870974.89356289,0.0003698,2]
[314526619,1708404666201,-142651.11950986,0.0003698,2]
[314526620,1708404666214,-734.70866164,0.0003698,2]
[314526621,1708404666247,-797.98,0.00035953,2]
[314526622,1708404666258,-709.66469586,0.0003698,2]
[314526623,1708404666271,-1377.8524481,0.0003698,2]
[314526624,1708404666284,-1435.36307112,0.0003698,2]
[314526625,1708404666296,-271.708502,0.0003698,2]
[314526626,1708404666815,-797.98,0.00036227,2]
[314526627,1708404666826,-797.98,0.00036501,2]
[314526628,1708404666837,-797.98,0.00036775,2]
[314526629,1708404666849,-356.57009752,0.0003698,2]
[314526630,1708404666862,-1153.55487858,0.0003698,2]
[314526631,1708404666889,-3687.46473616,0.0003698,2]
[314526632,1708404667103,-702.00285076,0.00035953,2]
[314526633,1708404667115,-598.00714924,0.00035953,2]
[314526634,1708404667124,-567.66548219,0.00036227,2]
[314526635,1708404667767,-327.78588718,0.00035342,2]
[314526636,1708404667779,-84.66411282,0.00035342,2]
[314526637,1708404667789,-732.34451781,0.00036227,2]
[314526638,1708404667798,-178.92630687,0.00036501,2]
[314526639,1708404667810,-1121.08369313,0.00036501,2]
[314526640,1708404667820,-553.89294026,0.00036775,2]
[314526641,1708404667899,-642.24592438,0.00036775,2]
[314526642,1708404668732,-500.0,0.00036347,2]
[314526643,1708404668743,-500.0,0.00036621,2]
[314526644,1708404668752,-103.87113536,0.00036775,2]
[314526645,1708404668761,-500.0,0.00036895,2]
[314526646,1708404668771,-5730.20076597,0.0003698,2]
[314526647,1708404669003,-1895.66990563,0.0003698,2]
[314526648,1708404669015,-147728.22407363,0.0003698,2]
[314526649,1708404669075,-781.12080225,0.0003698,2]
[314526650,1708404669086,-347.44581063,0.0003698,2]
[314526651,1708404669099,-49649.06353463,0.0003698,2]
[314526652,1708404669111,-540.14047444,0.0003698,2]
[314526653,1708404669127,-652.9326512,0.0003698,2]
[314526654,1708404674888,206.0,0.00032655,2]
[314526655,1708404677190,3080.127349,0.0002509,2]
[314526656,1708404677212,1156.58344823,0.0002509,2]
[314526657,1708404677558,22235.77094607,0.000264,2]
[314526658,1708404712948,3165.63828468,0.00015,10]
[314526659,1708404713438,18414.22256643,0.0002689,2]
[314526662,1708405587464,511.0,0.00025,10]
[314526663,1708405635095,-515.45724095,0.00024897,2]
[314526664,1708405635115,-837.90315843,0.00024898,2]
[314526665,1708405635133,-213.19772409,0.000249,2]
[314526666,1708405635153,-764.45430584,0.0002499,2]
[314526667,1708405635173,-244.8618899,0.00024992,2]
[314526668,1708405635195,-750.0,0.00025,3]
[314526669,1708405635435,-155.0,0.0002689,2]
[314526670,1708405635461,-162.24708737,0.000269,2]
[314526671,1708405635483,-800.0,0.00027,3]
[314526672,1708405635504,-5234.5197464,0.000272,2]
[314526673,1708405635527,-162.24708733,0.00027902,2]
[314526674,1708405635549,-150.0,0.00028903,2]
[314526675,1708405635569,-162.24708733,0.00028904,2]
[314526676,1708405635589,-850.0,0.00029,3]
[314526677,1708405635609,-150.0,0.00029,2]
[314526678,1708405635629,-150.0,0.00029548,2]
[314526679,1708405635651,-162.24708733,0.00029905,2]
[314526680,1708405635670,-9999.99,0.00029999,2]
[314526681,1708405635692,-499.99,0.00029999,2]
[314526682,1708405635712,-155.27059258,0.0003,2]
[314526683,1708405635735,-9688.41745537,0.0003,4]
[314526684,1708405635755,-20071.07032256,0.0003,2]
[314526685,1708405745147,-515.45724095,0.00029999,2]
[314526686,1708405745167,-159.07567056,0.0003,2]
[314526687,1708405747123,-155.0,0.00029998,2]
[314526688,1708405747143,-25542.394,0.0003,2]
[314526689,1708405749165,-12192.51985672,0.0003,2]